bitfinex-derivatives/quotes_SOLF0:USTF0_20241203
["timestamp","ask_amount","ask_price","bid_price","bid_amount"]
[1733244814477,2.74,222.85,222.8,2.2431]
[1733244814682,2.74,222.85,222.73,17.18127524]
[1733244814683,2.74,222.85,222.69,17.18127524]
[1733244814883,2.2427,222.84,222.78,2.2433]
[1733244815078,2.74,222.85,222.69,17.18127524]
[1733244815277,2.74,222.85,222.73,17.18127524]
[1733244815477,2.74,222.85,222.76,2.2434]
[1733244815677,17.18127524,222.93,222.73,17.18127524]
[1733244815678,17.18127524,222.93,222.74,1.3505]
[1733244815988,2.74,222.92,222.77,17.18127524]
[1733244816281,4.9819,222.92,222.86,2.2425]
[1733244816679,2.74,222.92,222.78,2.6876]
[1733244816884,1.3172,222.96,222.78,2.6876]
[1733244817080,2.74,222.95,222.78,2.6876]
[1733244817287,2.2417,222.94,222.79,1.13593963]
[1733244817481,2.74,222.93,222.91,2.242]
[1733244817681,2.74,222.92,222.81,17.18127524]
[1733244817888,2.74,222.92,222.78,4.88860988]
[1733244818084,2.74,222.92,222.79,1.1359215]
[1733244818283,2.74,222.92,222.88,2.2423]
[1733244818682,2.74,222.92,222.78,2.6876]
[1733244818887,2.74,222.91,222.81,17.18127524]
[1733244819088,2.74,222.92,222.81,17.18127524]
[1733244819278,2.74,222.94,222.91,2.2419]
[1733244819683,2.74,222.94,222.81,17.18127524]
[1733244819880,2.74,222.93,222.91,2.242]
[1733244820089,2.74,222.93,222.81,17.18127524]
[1733244820484,2.74,222.93,222.9,2.2421]
[1733244820687,2.74,222.93,222.81,17.18127524]
[1733244820987,2.74,222.93,222.78,2.6876]
[1733244821183,2.74,222.93,222.79,2.2083403]
[1733244821687,1.3172,222.96,222.79,2.2083403]
[1733244821882,46.74,222.98,222.78,4.90357152]
[1733244822082,2.74,222.97,222.84,17.18127524]
[1733244822289,2.74,222.97,222.85,1.2924]
[1733244822688,17.18127524,223.05,222.85,1.2924]
[1733244823088,2.74,223.04,222.88,17.18127524]
[1733244823390,4.9807,223.04,222.89,2.7001]
[1733244824288,4.9807,223.04,222.96,2.2414]
[1733244824995,4.9807,223.04,222.89,2.7001]
[1733244825197,4.9807,223.04,222.97,2.2414]
[1733244825393,4.9807,223.04,222.89,2.7001]
[1733244825587,4.9807,223.04,222.97,2.2413]
[1733244825796,4.9808,223.03,222.89,2.7001]
[1733244825990,2.74,223.03,222.89,2.7001]
[1733244826192,2.74,223.03,222.97,2.2414]
[1733244826596,2.74,223.03,222.89,2.7001]
[1733244826795,2.74,223.03,222.99,2.2411]
[1733244827096,2.74,223.03,222.89,2.7001]
[1733244827886,2.74,223.03,223.0,2.2411]
[1733244828088,2.74,223.03,222.89,2.7001]
[1733244828288,2.74,223.08,222.97,17.18127524]
[1733244828696,2.74,223.08,222.98,1.4003]
[1733244829088,2.74,223.1,223.09,2.2401]
[1733244829291,2.74,223.13,223.01,17.18127524]
[1733244829494,2.74,223.13,223.01,19.92127524]
[1733244830494,2.74,223.13,223.09,2.2402]
[1733244830797,2.74,223.13,223.01,19.92127524]
[1733244830998,2.74,223.13,223.09,2.2402]
[1733244831195,2.74,223.13,223.01,17.18127524]
[1733244831698,2.74,223.13,223.07,2.2404]
[1733244832490,2.74,223.13,223.01,17.18127524]
[1733244833600,2.74,223.13,223.1,2.24]
[1733244833801,2.74,223.13,223.01,17.18127524]
[1733244834302,2.74,223.13,223.11,2.24]
[1733244835703,2.74,223.13,223.12,2.2399]
[1733244836002,38.47035996,223.16,223.05,17.18127524]
[1733244836703,2.74,223.18,223.05,17.18127524]
[1733244837099,2.74,223.18,223.15,2.2396]
[1733244837397,2.74,223.21,223.06,2.19642043]
[1733244837599,2.74,223.21,223.17,2.2394]
[1733244837793,2.74,223.21,223.13,17.18127524]
[1733244839896,2.74,223.21,223.17,2.2394]
[1733244840409,2.74,223.21,223.18,2.2392]
[1733244840600,17.18127524,223.32,223.13,17.18127524]
[1733244840802,4.0729,223.3,223.13,17.18127524]
[1733244841198,2.74,223.29,223.13,17.18127524]
[1733244842704,2.239,223.21,223.15,2.2395]
[1733244842907,2.74,223.2,223.09,2.7641]
[1733244843107,2.74,223.19,223.09,2.7641]
[1733244843305,2.74,223.19,223.12,2.2399]
[1733244843507,2.74,223.19,223.09,2.7641]
[1733244843508,2.74,223.19,223.09,1.4203]
[1733244844008,2.74,223.19,223.04,17.18127524]
[1733244844307,2.74,223.19,222.98,1.376]
[1733244844308,2.2399,223.12,223.06,2.2405]
[1733244844506,2.74,223.11,223.0,17.18127524]
[1733244845006,2.74,223.11,222.96,17.18127524]
[1733244845504,2.2401,223.1,223.03,2.2407]
[1733244845709,2.74,223.11,222.96,17.18127524]
[1733244846214,2.74,223.11,222.92,17.18127524]
[1733244846414,1.285,223.1,222.92,17.18127524]
[1733244846606,1.285,223.1,222.91,4.0921]
[1733244846607,1.285,223.1,222.96,17.18127524]
[1733244847303,3.5251,223.1,223.03,2.2407]
[1733244847506,17.18127524,223.08,222.89,17.18127524]
[1733244847909,2.2407,223.05,222.94,2.2417]
[1733244848110,2.74,223.04,222.89,17.18127524]
[1733244848515,4.9807,223.04,222.93,2.2417]
[1733244848811,2.74,223.04,222.89,17.18127524]
[1733244849014,2.74,223.04,222.93,2.2418]
[1733244849015,2.2411,223.01,222.93,2.2418]
[1733244849214,2.74,223.04,222.89,17.18127524]
[1733244849714,2.74,223.04,222.96,2.2415]
[1733244849916,2.7219,223.07,222.89,17.18127524]
[1733244850113,43.08378575,224.85,222.87,2.6104]
[1733244850114,2.2402,223.09,222.97,17.18127524]
[1733244850418,2.74,223.14,223.01,17.18127524]
[1733244850609,2.74,223.13,223.01,17.18127524]
[1733244851221,19.95297524,223.22,223.12,2.2399]
[1733244851517,2.74,223.21,223.12,2.2399]
[1733244851716,2.74,223.21,223.05,17.18127524]
[1733244851913,2.74,223.21,223.0,2.74]
[1733244851914,46.64,223.3,223.09,17.18127524]
[1733244852114,22.69167524,223.29,223.1,1.3159]
[1733244852622,2.2388,223.24,223.1,1.3159]
[1733244852813,2.74,223.23,223.1,1.3159]
[1733244853010,2.74,223.23,223.13,2.2397]
[1733244853206,2.74,223.23,223.1,2.7249]
[1733244853712,2.74,223.23,223.13,17.18127524]
[1733244854209,2.74,223.23,223.11,1.2847]
[1733244854210,2.74,223.31,223.17,17.18127524]
[1733244855411,2.2382,223.3,223.17,17.18127524]
[1733244855618,2.2382,223.3,223.11,4.0247]
[1733244855619,2.2382,223.3,223.16,27.55685853]
[1733244855918,2.74,223.31,223.16,27.55685853]
[1733244856113,2.74,223.31,223.2,2.239]
[1733244856319,2.74,223.31,223.16,27.55685853]
[1733244856710,4.978,223.31,223.16,27.55685853]
[1733244857213,2.2381,223.3,223.2,2.239]
[1733244857514,2.74,223.31,223.16,27.55685853]
[1733244857713,2.74,223.31,223.2,2.2391]
[1733244857714,2.2383,223.29,223.2,2.2391]
[1733244858021,1.346,223.3,223.2,2.2391]
[1733244858321,2.2384,223.27,223.2,2.2391]
[1733244858516,1.346,223.3,223.18,2.2393]
[1733244858712,1.3753,223.29,223.18,2.2393]
[1733244858912,2.2386,223.25,223.12,27.55685853]
[1733244859217,2.72,223.24,223.12,27.55685853]
[1733244859417,2.72,223.24,223.11,1.2847]
[1733244860612,2.72,223.24,223.18,2.2392]
[1733244860817,2.72,223.24,223.11,1.2847]
[1733244861326,2.72,223.24,223.12,27.55685853]
[1733244862319,2.72,223.24,223.2,2.2391]
[1733244862521,2.72,223.24,223.12,27.55685853]
[1733244864123,2.72,223.24,223.23,2.2388]
[1733244864825,2.2374,223.37,223.29,2.2381]
[1733244865127,1.3434,223.4,223.21,27.55685853]
[1733244865128,2.72,223.36,223.22,3.9707]
[1733244865821,2.72,223.35,223.22,3.9707]
[1733244866025,4.9576,223.35,223.22,3.9707]
[1733244866421,2.72,223.35,223.22,3.9707]
[1733244866628,4.9576,223.35,223.25,2.2385]
[1733244866818,4.9576,223.35,223.22,3.9707]
[1733244867126,2.72,223.34,223.22,3.9707]
[1733244867317,2.2379,223.32,223.22,3.9707]
[1733244867516,2.72,223.33,223.22,3.9707]
[1733244868121,2.72,223.33,223.22,2.6651]
[1733244868425,27.55685853,223.32,223.15,1.3]
[1733244868726,2.72,223.33,223.17,27.55685853]
[1733244869228,4.9578,223.33,223.26,2.2384]
[1733244870231,2.72,223.33,223.26,2.2384]
[1733244870528,2.72,223.33,223.17,27.55685853]
[1733244870920,4.9578,223.33,223.27,2.2383]
[1733244871530,4.9578,223.33,223.28,2.2383]
[1733244871922,4.9578,223.33,223.17,27.55685853]
[1733244871923,2.2379,223.32,223.17,27.55685853]
[1733244872128,2.72,223.33,223.17,27.55685853]
[1733244872929,4.9578,223.33,223.17,27.55685853]
[1733244873644,2.72,223.33,223.17,27.55685853]
[1733244874231,4.9579,223.33,223.26,2.2385]
[1733244874634,2.72,223.33,223.26,2.2385]
[1733244874831,2.238,223.31,223.17,27.55685853]
[1733244875025,2.72,223.33,223.26,2.2385]
[1733244875232,2.72,223.33,223.17,27.55685853]
[1733244875429,4.9579,223.33,223.26,2.2384]
[1733244875731,2.72,223.33,223.17,27.55685853]
[1733244876135,2.2379,223.32,223.17,27.55685853]
[1733244877227,2.2379,223.32,223.21,2.2389]
[1733244877426,2.2379,223.32,223.17,27.55685853]
[1733244877629,2.2379,223.32,223.18,16.95460523]
[1733244878326,2.238,223.31,223.18,16.95460523]
[1733244878530,2.72,223.33,223.18,16.95460523]
[1733244878938,2.2375,223.36,223.22,16.95460523]
[1733244879125,2.72,223.35,223.23,2.6324]
[1733244879326,2.72,223.35,223.32,2.2379]
[1733244879829,2.72,223.35,223.23,2.6324]
[1733244879830,2.72,223.35,223.34,2.2377]
[1733244880934,2.72,223.35,223.27,1.3377]
[1733244881435,2.72,223.36,223.27,1.3377]
[1733244881625,16.95460523,223.41,223.27,1.3377]
[1733244881830,2.72,223.4,223.27,1.3377]
[1733244882029,16.95460523,223.45,223.27,1.3377]
[1733244882030,2.72,223.39,223.27,1.3377]
[1733244882232,2.72,223.39,223.36,2.2374]
[1733244882834,16.95460523,223.45,223.38,2.2373]
[1733244882835,2.2367,223.44,223.38,2.2373]
[1733244883032,2.72,223.43,223.38,2.2373]
[1733244883433,2.72,223.43,223.31,2.2379]
[1733244883629,2.72,223.42,223.27,1.3377]
[1733244884037,2.72,223.42,223.38,2.2372]
[1733244884236,2.72,223.42,223.27,1.3377]
[1733244884431,2.2371,223.4,223.35,2.2376]
[1733244884731,2.72,223.42,223.27,1.3377]
[1733244885627,2.2373,223.39,223.33,2.2378]
[1733244885830,2.2373,223.39,223.27,1.3377]
[1733244886028,2.72,223.42,223.27,1.3377]
[1733244886934,16.95460523,223.41,223.27,1.3377]
[1733244887141,16.95460523,223.41,223.31,2.2379]
[1733244887142,2.2375,223.37,223.31,2.2379]
[1733244887439,2.72,223.36,223.27,1.3377]
[1733244888436,2.72,223.36,223.33,2.2377]
[1733244889642,2.72,223.36,223.27,1.3377]
[1733244890338,2.72,223.36,223.32,2.2378]
[1733244890740,2.72,223.36,223.27,1.3377]
[1733244891741,2.72,223.36,223.23,2.6324]
[1733244891939,16.95460523,223.33,223.23,1.3293]
[1733244892946,16.95460523,223.33,223.16,2.7869]
[1733244893140,16.95460523,223.33,223.17,1.4144]
[1733244893347,2.2385,223.27,223.21,2.239]
[1733244893545,2.72,223.26,223.17,1.4144]
[1733244893944,2.72,223.26,223.19,2.2391]
[1733244894246,2.72,223.26,223.17,1.4144]
[1733244894844,2.72,223.26,223.21,2.2389]
[1733244895650,2.72,223.26,223.17,1.4144]
[1733244897053,1.3492,223.35,223.19,16.95460523]
[1733244897350,2.72,223.34,223.19,16.95460523]
[1733244897752,2.72,223.34,223.23,16.95460523]
[1733244898051,2.72,223.34,223.24,2.29223489]
[1733244898647,2.72,223.34,223.32,2.2378]
[1733244899747,2.72,223.34,223.33,2.2378]
[1733244900449,2.72,223.34,223.32,2.2379]
[1733244900754,2.72,223.34,223.23,16.95460523]
[1733244900951,2.72,223.34,223.23,19.17850393]
[1733244901146,16.95460523,223.41,223.23,19.17850393]
[1733244901356,16.95460523,223.45,223.27,16.95460523]
[1733244901550,2.72,223.44,223.28,4.0386]
[1733244901748,2.6929,223.47,223.31,16.95460523]
[1733244901749,2.72,223.43,223.31,16.95460523]
[1733244902250,2.72,223.43,223.39,2.2371]
[1733244903151,2.72,223.43,223.31,16.95460523]
[1733244903358,2.72,223.43,223.41,2.2369]
[1733244903553,16.95460523,223.49,223.41,2.2369]
[1733244903753,2.72,223.48,223.41,2.2369]
[1733244904057,2.2364,223.47,223.31,16.95460523]
[1733244904256,2.72,223.48,223.31,16.95460523]
[1733244904855,2.72,223.47,223.31,16.95460523]
[1733244905057,2.72,223.47,223.43,2.2368]
[1733244905357,2.72,223.47,223.35,16.95460523]
[1733244905659,2.72,223.47,223.44,2.2367]
[1733244906651,2.72,223.47,223.35,16.95460523]
[1733244907355,2.72,223.47,223.45,2.2365]
[1733244907655,2.72,223.47,223.36,2.22352321]
[1733244907847,2.72,223.47,223.46,2.2365]
[1733244908052,2.72,223.48,223.37,2.21285234]
[1733244908253,2.2352,223.59,223.4,16.95460523]
[1733244908459,2.72,223.58,223.52,2.2358]
[1733244909251,2.2358,223.53,223.46,2.2364]
[1733244909448,2.72,223.52,223.41,4.1593]
[1733244910258,2.72,223.52,223.48,2.2363]
[1733244910552,2.72,223.52,223.41,4.1593]
[1733244910755,4.9559,223.52,223.44,2.2367]
[1733244911151,4.9559,223.52,223.41,2.7414]
[1733244911354,2.72,223.52,223.41,2.7414]
[1733244911657,10.58131959,223.51,223.41,2.7414]
[1733244912059,10.58131959,223.48,223.35,1.3371]
[1733244912258,307.98975861,223.62,223.4,10.58131959]
[1733244912457,307.98975861,223.62,223.35,1.3371]
[1733244912458,10.58131959,223.6,223.46,10.58131959]
[1733244912851,2.72,223.61,223.49,10.58131959]
[1733244913056,2.72,223.61,223.52,2.2358]
[1733244913256,10.58131959,223.6,223.46,10.58131959]
[1733244913660,12.81641959,223.6,223.54,2.2357]
[1733244913960,12.81641959,223.6,223.46,10.58131959]
[1733244914158,2.72,223.59,223.57,2.2354]
[1733244914657,2.72,223.58,223.52,10.58131959]
[1733244914856,1.3589,223.63,223.52,10.58131959]
[1733244914857,2.72,223.6,223.52,10.58131959]
[1733244915451,2.72,223.6,223.53,1.3177]
[1733244916257,2.72,223.6,223.59,2.2352]
[1733244919061,2.72,223.6,223.53,1.3177]
[1733244919062,2.72,223.66,223.53,1.3177]
[1733244919458,2.2346,223.65,223.53,1.3177]
[1733244919759,2.72,223.66,223.53,1.3177]
[1733244919954,4.9545,223.66,223.53,1.3177]
[1733244920155,1.61901433,225.51,223.64,16.90565487]
[1733244920156,2.72,223.85,223.64,16.90565487]
[1733244920358,2.72,223.85,223.68,16.90565487]
[1733244920558,2.8103,223.89,223.81,2.233]
[1733244920754,2.8103,223.89,223.72,16.90565487]
[1733244921057,1.3737,223.99,223.76,16.90565487]
[1733244921058,2.72,223.88,223.76,16.90565487]
[1733244921258,2.72,223.89,223.77,2.7189]
[1733244921456,2.72,223.89,223.84,2.2326]
[1733244921861,2.72,223.89,223.77,2.7189]
[1733244923061,2.2323,223.88,223.77,2.7189]
[1733244923362,2.72,223.89,223.77,1.3291]
[1733244923552,2.72,223.89,223.72,16.90565487]
[1733244924159,2.72,223.89,223.81,2.233]
[1733244924360,2.2323,223.88,223.81,2.233]
[1733244924661,2.72,223.89,223.79,2.2331]
[1733244924961,2.72,223.89,223.72,16.90565487]
[1733244925558,16.90565487,223.84,223.68,1.4011]
[1733244925861,16.90565487,223.84,223.65,2.693]
[1733244925862,6.6826,223.83,223.65,2.693]
[1733244926060,6.6826,223.83,223.71,2.2339]
[1733244926061,2.2333,223.78,223.71,2.2339]
[1733244926265,2.72,223.77,223.65,2.693]
[1733244927254,2.72,223.77,223.65,1.3032]
[1733244927461,2.72,223.77,223.59,16.90565487]
[1733244927654,2.2339,223.73,223.66,2.2344]
[1733244927963,2.2339,223.73,223.59,16.90565487]
[1733244928159,16.90565487,223.76,223.59,16.90565487]
[1733244928355,16.90565487,223.76,223.68,2.2342]
[1733244928356,2.2337,223.75,223.68,2.2342]
[1733244928658,16.90565487,223.76,223.59,16.90565487]
[1733244929860,2.2338,223.73,223.66,2.2344]
[1733244930055,2.2338,223.73,223.59,16.90565487]
[1733244930663,2.2339,223.72,223.66,2.2345]
[1733244930956,2.72,223.71,223.59,16.90565487]
[1733244931159,2.2342,223.69,223.56,2.7406]
[1733244931364,2.72,223.68,223.56,1.4011]
[1733244931862,4.9543,223.68,223.56,1.4011]
[1733244932055,2.72,223.68,223.56,1.4011]
[1733244933663,2.72,223.68,223.64,2.2347]
[1733244933862,2.72,223.68,223.56,1.4011]
[1733244934060,2.72,223.68,223.59,16.90565487]
[1733244934361,2.72,223.68,223.66,2.2344]
[1733244934764,2.2338,223.73,223.64,2.2346]
[1733244934963,2.72,223.72,223.57,1.3777]
[1733244935260,2.72,223.72,223.62,16.90565487]
[1733244935563,2.7836,223.76,223.62,16.90565487]
[1733244935564,2.72,223.76,223.62,16.90565487]
[1733244935861,2.72,223.76,223.66,16.90565487]
[1733244936068,2.72,223.75,223.66,16.90565487]
[1733244936260,2.72,223.74,223.66,16.90565487]
[1733244936462,2.72,223.74,223.69,2.2342]
[1733244936865,2.72,223.74,223.66,16.90565487]
[1733244937165,2.72,223.74,223.73,2.2338]
[1733244938158,2.72,223.81,223.78,2.2332]
[1733244938860,2.72,223.81,223.67,1.3699]
[1733244939768,2.72,223.81,223.7,16.90565487]
[1733244940065,2.72,223.81,223.77,2.2334]
[1733244940258,2.72,223.81,223.7,16.90565487]
[1733244941270,38.35657208,223.82,223.7,16.90565487]
[1733244941568,41.07657208,223.82,223.7,16.90565487]
[1733244941766,41.07657208,223.82,223.77,2.2333]
[1733244941962,41.07657208,223.82,223.7,16.90565487]
[1733244944664,43.30947208,223.82,223.7,16.90565487]
[1733244945362,43.30947208,223.82,223.75,2.2336]
[1733244945566,41.07657208,223.82,223.67,1.3699]
[1733244945867,2.72,223.81,223.67,1.3699]
[1733244946065,19.62565487,223.8,223.64,1.3886]
[1733244946271,2.72,223.79,223.66,2.2345]
[1733244946467,16.90565487,223.76,223.59,1.4057]
[1733244946672,16.90565487,223.72,223.59,1.4057]
[1733244946867,16.90565487,223.68,223.56,2.7009]
[1733244947270,2.2346,223.65,223.58,2.2353]
[1733244947469,13.41,223.86,223.58,16.90565487]
[1733244947669,2.72,223.76,223.58,16.90565487]
[1733244948071,16.90565487,223.73,223.56,2.7009]
[1733244948276,2.72,223.76,223.56,2.7009]
[1733244948277,2.2344,223.67,223.56,2.7009]
[1733244948574,2.72,223.66,223.56,2.7009]
[1733244948972,2.2346,223.65,223.56,2.7009]
[1733244949275,2.72,223.66,223.53,1.4057]
[1733244949570,4.9545,223.66,223.59,2.2352]
[1733244949972,13.41,223.83,223.54,16.90565487]
[1733244950171,16.90565487,223.74,223.54,16.90565487]
[1733244950369,2.701,223.76,223.58,16.90565487]
[1733244950571,2.2336,223.75,223.69,2.2342]
[1733244950778,2.701,223.76,223.58,16.90565487]
[1733244951176,2.701,223.76,223.69,2.2341]
[1733244951377,2.701,223.76,223.58,16.90565487]
[1733244951772,2.701,223.76,223.56,2.72]
[1733244951773,2.2337,223.74,223.67,2.2344]
[1733244951975,2.72,223.79,223.63,4.0805]
[1733244952378,2.6882,223.88,223.66,16.90565487]
[1733244952579,2.72,223.83,223.66,19.18593064]
[1733244953379,2.72,223.83,223.77,2.2334]
[1733244953573,2.72,223.83,223.66,19.18593064]
[1733244953574,4.9528,223.83,223.66,16.90565487]
[1733244953773,16.90565487,223.86,223.66,16.90565487]
[1733244953774,307.98975861,224.03,223.71,16.90565487]
[1733244954080,16.90565487,223.92,223.71,16.90565487]
[1733244954274,2.92,223.91,223.71,16.90565487]
[1733244954478,16.90565487,223.92,223.71,16.90565487]
[1733244954479,2.92,223.9,223.71,16.90565487]
[1733244954778,5.1521,223.9,223.82,2.2329]
[1733244956080,13.41,224.1,223.76,16.90565487]
[1733244956373,1.3168,223.99,223.8,16.90565487]
[1733244956572,3.548,223.99,223.85,2.2325]
[1733244956769,3.548,223.99,223.8,16.90565487]
[1733244957480,2.2313,223.98,223.8,16.90565487]
[1733244957680,2.92,223.97,223.8,16.90565487]
[1733244958172,1.3168,223.99,223.8,16.90565487]
[1733244958373,2.92,223.98,223.8,16.90565487]
[1733244958577,16.90565487,224.01,223.8,16.90565487]
[1733244958773,2.92,224.0,223.8,16.90565487]
[1733244959575,5.1512,224.0,223.8,16.90565487]
[1733244960179,2.92,223.99,223.8,16.90565487]
[1733244960777,2.92,223.98,223.93,2.2318]
[1733244960979,2.92,223.98,223.84,16.90565487]
[1733244961178,16.90565487,223.97,223.83,2.2328]
[1733244961373,16.90565487,223.97,223.77,4.0713]
[1733244961374,2.2321,223.91,223.77,4.0713]
[1733244961584,2.92,223.9,223.77,4.0713]
[1733244961979,2.92,223.89,223.77,4.0713]
[1733244962175,2.92,223.89,223.72,16.90565487]
[1733244962478,2.2328,223.83,223.68,20.92055487]
[1733244962780,2.92,223.82,223.68,20.92055487]
[1733244963187,16.90565487,223.81,223.68,4.0149]
[1733244963378,2.92,223.8,223.68,4.0149]
[1733244964182,16.90565487,223.77,223.58,16.90565487]
[1733244964383,16.90565487,223.77,223.59,1.3531]
[1733244964780,2.92,223.8,223.59,1.3531]
[1733244964781,16.90565487,223.73,223.59,1.3531]
[1733244964976,2.92,223.72,223.59,1.3531]
[1733244965178,2.92,223.72,223.55,1.328]
[1733244965179,2.2346,223.66,223.58,2.2352]
[1733244965483,16.90565487,223.64,223.46,16.90565487]
[1733244965682,2.235,223.62,223.52,2.2359]
[1733244965878,2.235,223.62,223.49,1.328]
[1733244966285,2.235,223.61,223.49,1.328]
[1733244966582,2.92,223.6,223.49,1.328]
[1733244966787,16.90565487,223.64,223.49,1.328]
[1733244967287,16.90565487,223.64,223.57,2.2353]
[1733244967288,2.92,223.63,223.57,2.2353]
[1733244967586,16.90565487,223.64,223.49,1.328]
[1733244967783,2.92,223.63,223.55,2.2355]
[1733244967988,2.92,223.63,223.49,1.328]
[1733244968788,16.90565487,223.64,223.49,1.328]
[1733244968985,2.92,223.63,223.49,1.328]
[1733244969180,16.90565487,223.64,223.49,1.328]
[1733244969382,2.92,223.63,223.49,1.328]
[1733244969576,2.92,223.62,223.49,1.328]
[1733244970379,16.90565487,223.6,223.42,2.6598]
[1733244970582,16.90565487,223.56,223.43,1.4151]
[1733244970780,16.90565487,223.54,223.43,1.4151]
[1733244970983,2.92,223.53,223.43,1.4151]
[1733244971387,2.92,223.53,223.45,2.2365]
[1733244971684,2.92,223.53,223.42,1.3531]
[1733244972081,2.2359,223.52,223.44,2.2366]
[1733244972281,2.2359,223.52,223.42,1.3531]
[1733244972488,2.92,223.51,223.42,1.3531]
[1733244972888,2.2359,223.53,223.43,2.2368]
[1733244973088,2.92,223.52,223.42,1.3531]
[1733244973290,2.92,223.52,223.35,2.7312]
[1733244973588,16.90565487,223.5,223.35,1.4151]
[1733244973793,16.90565487,223.46,223.33,1.316]
[1733244973987,2.92,223.45,223.28,1.2921]
[1733244974287,4.2162,223.45,223.28,1.2921]
[1733244974486,16.90565487,223.42,223.28,1.2921]
[1733244974884,2.92,223.41,223.28,1.2921]
[1733244975086,16.90565487,223.42,223.28,1.2921]
[1733244975281,2.92,223.41,223.28,1.2921]
[1733244975482,1.2962,223.45,223.3,16.90565487]
[1733244975684,2.92,223.44,223.3,16.90565487]
[1733244976093,2.7612,223.51,223.3,16.90565487]
[1733244976290,2.7054,223.51,223.3,16.90565487]
[1733244976487,2.92,223.5,223.34,16.90565487]
[1733244976691,2.92,223.5,223.35,2.6277]
[1733244976995,2.92,223.49,223.35,2.6277]
[1733244978392,2.92,223.49,223.38,2.2373]
[1733244978393,2.2365,223.46,223.38,2.2373]
[1733244979393,2.92,223.45,223.35,2.6277]
[1733244979794,2.92,223.45,223.4,2.2371]
[1733244980192,2.92,223.45,223.35,2.6277]
[1733244980990,2.92,223.45,223.3,16.90565487]
[1733244981196,2.92,223.45,223.28,1.2921]
[1733244981197,16.90565487,223.44,223.28,1.2921]
[1733244981594,2.2372,223.39,223.31,2.238]
[1733244981788,2.92,223.38,223.31,2.238]
[1733244981994,1.4146,223.47,223.3,16.90565487]
[1733244982190,2.2368,223.43,223.36,2.2375]
[1733244982390,1.4146,223.47,223.3,16.90565487]
[1733244982594,2.92,223.46,223.3,16.90565487]
[1733244982995,2.2369,223.42,223.35,2.2376]
[1733244983293,2.2369,223.42,223.3,16.90565487]
[1733244983294,2.92,223.46,223.3,16.90565487]
[1733244984293,2.7054,223.51,223.34,16.90565487]
[1733244984795,2.88,223.5,223.35,2.6784]
[1733244985298,2.88,223.5,223.44,2.2367]
[1733244985597,2.88,223.5,223.35,2.6784]
[1733244985598,16.90565487,223.53,223.35,2.6784]
[1733244985794,2.88,223.49,223.35,2.6784]
[1733244986693,2.88,223.53,223.38,16.90565487]
[1733244986999,2.88,223.53,223.46,2.2364]
[1733244987199,2.88,223.53,223.39,1.3069]
[1733244987496,2.2359,223.52,223.43,2.2368]
[1733244987691,2.88,223.53,223.39,1.3069]
[1733244987998,2.88,223.53,223.35,2.6784]
[1733244988194,16.90565487,223.5,223.35,2.6784]
[1733244988396,2.7436,223.49,223.35,2.6784]
[1733244988593,2.88,223.53,223.45,2.2365]
[1733244988996,2.88,223.53,223.39,16.90565487]
[1733244989596,2.2359,223.52,223.39,16.90565487]
[1733244990496,1.415,223.62,223.39,16.90565487]
[1733244990704,5.5345,223.64,223.47,16.90565487]
[1733244992493,2.2351,223.6,223.54,2.2356]